bitfinex/quotes_BTCUSD_20251217
["timestamp","ask_amount","ask_price","bid_price","bid_amount"]
[1766013457114,0.01836,86199.0,86180.0,0.58130878]
[1766013457336,0.01836,86199.0,86182.0,0.48715]
[1766013457706,0.01836,86199.0,86182.0,0.48529722]
[1766013457922,0.01836,86199.0,86182.0,0.48493875]
[1766013458139,0.01836,86199.0,86182.0,0.48457331]
[1766013458364,0.01836,86199.0,86183.0,0.01353557]
[1766013458567,0.01836,86199.0,86180.0,0.5827263]
[1766013458789,0.01836,86199.0,86181.0,0.62425]
[1766013459007,0.01836,86199.0,86182.0,0.62425]
[1766013459224,0.01836,86199.0,86182.0,0.62129395]
[1766013459652,0.01836,86199.0,86182.0,0.61751242]
[1766013459913,0.01836,86199.0,86182.0,0.6167538]
[1766013460137,0.01836,86199.0,86182.0,0.6177538]
[1766013460351,0.01997287,86199.0,86183.0,0.48715]
[1766013460768,0.01997287,86199.0,86183.0,0.48676525]
[1766013460950,0.01997287,86199.0,86183.0,0.48602135]
[1766013461217,0.01997287,86199.0,86183.0,0.48304224]
[1766013461428,0.01997287,86199.0,86183.0,0.48193396]
[1766013461640,0.01997287,86199.0,86183.0,0.48156876]
[1766013461853,0.01997287,86199.0,86184.0,0.60564]
[1766013462276,0.01997287,86199.0,86184.0,0.60262827]
[1766013462520,0.01997287,86199.0,86187.0,0.01351916]
[1766013462749,0.01997287,86199.0,86187.0,0.01202507]
[1766013462973,0.01997287,86199.0,86187.0,0.01166242]
[1766013463864,0.01997287,86199.0,86188.0,0.47102138]
[1766013464293,0.01997287,86199.0,86189.0,0.60564]
[1766013464505,0.01997287,86199.0,86189.0,0.60264278]
[1766013464934,0.01997287,86199.0,86189.0,0.59927642]
[1766013466009,0.01997287,86199.0,86189.0,0.47397984]
[1766013466436,0.01997287,86199.0,86189.0,0.47100364]
[1766013466883,0.01997287,86199.0,86190.0,0.60564]
[1766013467100,0.01997287,86199.0,86190.0,0.60229175]
[1766013467532,0.01997287,86199.0,86190.0,0.59926544]
[1766013469920,0.01997287,86199.0,86190.0,0.59887679]
[1766013470359,0.0908127,86201.0,86192.0,0.47436]
[1766013470360,2.7e-06,86201.0,86192.0,0.47436]
[1766013470563,2.7e-06,86201.0,86194.0,0.47436]
[1766013470756,2.7e-06,86201.0,86196.0,0.47436]
[1766013470980,2.7e-06,86201.0,86196.0,0.47397044]
[1766013472090,2.7e-06,86201.0,86197.0,0.60525581]
[1766013472460,2.7e-06,86201.0,86197.0,0.60229791]
[1766013473236,2.7e-06,86201.0,86198.0,0.47397156]
[1766013474174,2.7e-06,86201.0,86198.0,0.47063766]
[1766013474474,2.7e-06,86201.0,86195.0,0.00026394]
[1766013474671,2.7e-06,86201.0,86199.0,0.60262407]
[1766013475037,2.7e-06,86201.0,86195.0,0.00026394]
[1766013475257,2.7e-06,86201.0,86198.0,0.002]
[1766013475377,2.7e-06,86201.0,86193.0,0.01524452]
[1766013475778,2.7e-06,86201.0,86199.0,0.001]
[1766013476176,2.7e-06,86201.0,86200.0,0.47436]
[1766013476852,2.7e-06,86201.0,86200.0,1.07701502]
[1766013477277,2.7e-06,86201.0,86200.0,1.07281831]
[1766013477637,2.7e-06,86201.0,86200.0,1.06977085]
[1766013478264,2.7e-06,86201.0,86200.0,1.06941149]
[1766013478669,0.38491254,86215.0,86194.0,1.08]
[1766013478888,0.00161287,86214.0,86195.0,0.47436]
[1766013479086,0.00161287,86214.0,86199.0,0.47436]
[1766013479328,0.00161287,86214.0,86201.0,0.60564]
[1766013479557,0.50575287,86214.0,86201.0,0.60230363]
[1766013479928,0.50575287,86214.0,86201.0,0.59925664]
[1766013480921,0.49405,86210.0,86195.0,0.10723308]
[1766013481129,0.49405,86209.0,86194.0,0.47436]
[1766013481368,0.49566287,86209.0,86194.0,0.47436]
[1766013481563,0.49405,86206.0,86194.0,0.47436]
[1766013481778,0.49405,86203.0,86191.0,0.01836]
[1766013481987,0.49405,86201.0,86191.0,0.0001127]
[1766013482199,0.49566287,86201.0,86191.0,0.0001127]
[1766013482628,0.00161287,86201.0,86191.0,0.60564]
[1766013482842,0.00161287,86201.0,86193.0,0.60564]
[1766013483056,0.00172555,86201.0,86194.0,0.47436]
[1766013483280,0.00172555,86201.0,86195.0,0.60564]
[1766013483496,0.00172555,86201.0,86195.0,0.60525112]
[1766013483898,0.001,86209.0,86196.0,0.47436]
[1766013484042,0.89201021,86210.0,86196.0,0.47436]
[1766013484248,0.49405,86210.0,86196.0,0.47436]
[1766013484480,0.49405,86210.0,86196.0,0.47399648]
[1766013484683,0.49405,86209.0,86196.0,0.47399648]
[1766013484874,0.0907,86208.0,86196.0,0.47399648]
[1766013485074,0.49405,86206.0,86195.0,0.00161287]
[1766013485276,0.51227,86202.0,86195.0,0.00161287]
[1766013485494,0.49405,86199.0,86188.0,0.01810904]
[1766013485690,0.49405,86199.0,86188.0,0.01822172]
[1766013485893,0.49405,86199.0,86188.0,0.62386172]
[1766013486054,0.10229971,86209.0,86188.0,0.62386172]
[1766013486257,0.0907,86207.0,86188.0,0.62386172]
[1766013486468,0.49405,86203.0,86188.0,0.62347398]
[1766013487308,0.49440738,86203.0,86188.0,0.62347398]
[1766013487510,0.49440738,86203.0,86188.0,0.00011268]
[1766013487795,0.49440738,86203.0,86192.0,0.60487249]
[1766013488003,0.49440738,86203.0,86192.0,0.60411675]
[1766013488206,0.49440738,86203.0,86192.0,0.60301125]
[1766013488415,0.49440738,86203.0,86192.0,0.60192667]
[1766013488790,0.49440738,86203.0,86192.0,0.60155474]
[1766013489019,0.49440738,86203.0,86192.0,0.60081377]
[1766013489264,0.11546078,86202.0,86192.0,0.59931917]
[1766013489485,0.11581816,86202.0,86192.0,0.5982187]
[1766013489943,0.11581816,86202.0,86192.0,0.59709378]
[1766013490155,0.11581816,86202.0,86192.0,0.59596073]
[1766013490403,0.11581816,86202.0,86192.0,0.59449284]
[1766013490630,0.06108682,86201.0,86192.0,0.59375199]
[1766013490867,0.00035738,86202.0,86192.0,0.59375199]
[1766013491434,0.00035738,86202.0,86192.0,0.59339141]
[1766013491839,0.00035738,86202.0,86192.0,0.49887]
[1766013492467,0.00035738,86202.0,86192.0,0.4984902]
[1766013493489,0.00035738,86202.0,86192.0,0.49810753]
[1766013494256,0.00035738,86202.0,86192.0,0.49936302]
[1766013494402,0.00035738,86202.0,86192.0,1.07269302]
[1766013494610,0.00035738,86202.0,86192.0,1.07232561]
[1766013494805,0.00035738,86202.0,86193.0,0.57333]
[1766013495682,0.00035738,86202.0,86193.0,0.57296577]
[1766013496615,0.00035738,86202.0,86194.0,0.49848967]
[1766013497658,0.00035738,86202.0,86188.0,0.00011268]
[1766013497659,0.52488,86196.0,86188.0,0.00011268]
[1766013497836,0.01160119,86198.0,86177.0,0.5913026]
[1766013497837,0.61597,86195.0,86177.0,0.5913026]
[1766013498067,0.49775,86191.0,86177.0,0.59055093]
[1766013498333,0.49775,86191.0,86177.0,0.58903933]
[1766013498572,0.49775,86191.0,86177.0,1.08679852]
[1766013498754,0.49775,86191.0,86177.0,0.51723]
[1766013498951,0.49775,86191.0,86177.0,0.51687001]
[1766013499217,0.49775,86191.0,86177.0,0.51572622]
[1766013499424,0.49775,86191.0,86177.0,0.51462916]
[1766013499623,0.49775,86191.0,86177.0,0.51351398]
[1766013499922,0.49775,86191.0,86177.0,0.51312427]
[1766013500123,0.63543886,86191.0,86177.0,0.49887]
[1766013500478,0.49775,86187.0,86174.0,0.01239604]
[1766013500643,0.49775,86187.0,86174.0,0.01127241]
[1766013501058,0.49775,86187.0,86174.0,0.58386502]
[1766013501236,0.49775,86187.0,86176.0,0.5729635]
[1766013501440,0.49775,86187.0,86176.0,0.57383847]
[1766013501638,0.06384366,86186.0,86176.0,0.57383847]
[1766013501856,0.49775,86187.0,86176.0,0.57383847]
[1766013502233,0.49775,86187.0,86176.0,0.00087497]
[1766013502538,0.49775,86187.0,86176.0,0.00051004]
[1766013503122,0.49775,86187.0,86176.0,0.49938004]
[1766013503316,0.03488771,86192.0,86187.0,0.00025599]
[1766013503562,0.49775,86209.0,86191.0,0.00051003]
[1766013503716,0.03488317,86204.0,86192.0,0.49887]
[1766013503921,0.03526369,86204.0,86192.0,0.49887]
[1766013504428,0.03526369,86204.0,86192.0,0.49850803]
[1766013505246,0.03526369,86204.0,86192.0,0.49546818]
[1766013505428,0.03526369,86204.0,86193.0,0.57295046]
[1766013506087,0.03526369,86204.0,86193.0,0.56695385]
[1766013506447,0.03526369,86204.0,86193.0,0.56658259]
[1766013506646,0.0907,86203.0,86193.0,0.56658259]
[1766013506893,0.09142231,86203.0,86193.0,0.56658259]
[1766013507494,0.09142231,86203.0,86194.0,0.49850989]
[1766013507917,0.00072231,86203.0,86194.0,0.49551701]
[1766013508343,2.31e-06,86203.0,86194.0,0.49602704]
[1766013508500,0.0907,86209.0,86196.0,0.56955335]
[1766013508860,0.09108283,86209.0,86196.0,0.56512158]
[1766013509357,0.00038283,86209.0,86196.0,0.56399796]
[1766013509618,2.83e-06,86209.0,86196.0,0.56287929]
[1766013509790,2.83e-06,86209.0,86196.0,0.56136357]
[1766013510042,0.00100283,86209.0,86197.0,0.49887]
[1766013510215,2.83e-06,86209.0,86197.0,0.49809837]
[1766013510357,2.83e-06,86209.0,86197.0,0.49394697]
[1766013511178,0.03488057,86214.0,86197.0,0.49394697]
[1766013511377,5.7e-07,86214.0,86198.0,0.0493947]
[1766013511619,0.01836,86217.0,86198.0,0.0493947]
[1766013511620,0.01836,86217.0,86201.0,0.49887]
[1766013511864,0.01844282,86217.0,86203.0,0.49887]
[1766013512065,0.01844282,86217.0,86205.0,0.57333]
[1766013512422,0.01844282,86217.0,86207.0,0.57333]
[1766013512647,0.001,86209.0,86207.0,0.57333]
[1766013512792,0.01844282,86217.0,86207.0,0.57333]
[1766013513218,0.01944282,86217.0,86207.0,0.57333]
[1766013513430,0.01844282,86217.0,86207.0,0.57294103]
[1766013514283,0.03487968,86216.0,86207.0,0.57294103]
[1766013514506,0.03487968,86216.0,86207.0,0.57256931]
[1766013515639,0.03487968,86216.0,86208.0,0.49887]
[1766013515809,0.03487968,86216.0,86208.0,0.49586483]
[1766013516214,0.03487968,86216.0,86198.0,0.00161287]
[1766013516356,0.03487968,86216.0,86193.0,0.01694907]
[1766013516557,0.03487968,86216.0,86193.0,0.13016235]
[1766013516963,0.6403,86212.0,86193.0,0.01656163]
[1766013517173,0.0907,86205.0,86193.0,0.01656163]
[1766013517661,0.0907,86205.0,86194.0,0.57296032]
[1766013518593,0.0907,86205.0,86194.0,0.569966]
[1766013518828,0.0907,86205.0,86194.0,0.56920509]
[1766013518980,0.0907,86205.0,86194.0,0.56502948]
[1766013519302,0.0907,86205.0,86195.0,0.49588686]
[1766013519513,0.0917,86205.0,86195.0,0.49515074]
[1766013519671,0.0907,86205.0,86195.0,0.49407554]
[1766013519873,0.00161287,86205.0,86195.0,0.49293175]
[1766013520096,0.00261287,86205.0,86195.0,0.49221253]
[1766013520445,0.0907,86204.0,86190.0,0.013895]
[1766013520689,0.09231287,86204.0,86190.0,0.013895]
[1766013521156,0.09231287,86204.0,86191.0,0.58842]
[1766013522128,0.09231287,86204.0,86192.0,0.58842]
[1766013522528,0.00161287,86204.0,86192.0,0.58842]
[1766013522744,0.00261287,86204.0,86192.0,0.58842]
[1766013523109,0.00161287,86204.0,86192.0,0.58804859]
[1766013523329,0.00261287,86204.0,86192.0,0.58804859]
[1766013523726,0.00161287,86204.0,86192.0,0.58804859]
[1766013524333,0.00161287,86204.0,86192.0,0.58767522]
[1766013525218,0.00161287,86204.0,86193.0,0.48308416]
[1766013526284,0.00161287,86204.0,86194.0,0.58805318]
[1766013526707,0.00261287,86204.0,86194.0,0.58805318]
[1766013526920,0.00161287,86204.0,86194.0,0.58805318]
[1766013527337,0.00161287,86204.0,86195.0,0.48346]
[1766013527552,0.00161287,86204.0,86195.0,0.48308938]
[1766013527970,0.34138809,86211.0,86195.0,0.48470225]
[1766013528177,0.45684887,86211.0,86196.0,0.58842]
[1766013528396,0.45684887,86211.0,86197.0,0.58842]
[1766013528610,0.45684887,86211.0,86197.0,0.58803987]
[1766013529240,0.34138809,86211.0,86197.0,0.58803987]
[1766013529463,0.34238809,86211.0,86197.0,0.58803987]
[1766013529641,0.34138809,86211.0,86197.0,0.58768411]
[1766013530008,0.55708,86210.0,86197.0,0.58768411]
[1766013530659,0.55708,86210.0,86197.0,0.5873199]
[1766013530926,0.01844282,86217.0,86198.0,0.48346]
[1766013531207,0.0533225,86217.0,86198.0,0.48346]
[1766013531612,0.001,86211.0,86198.0,0.48346]
[1766013532055,0.03487968,86216.0,86198.0,0.48346]
[1766013532226,0.01944282,86217.0,86198.0,0.48346]
[1766013532436,0.03487968,86215.0,86198.0,0.4830712]
[1766013532633,0.03487968,86215.0,86199.0,0.58842]
[1766013533622,0.03487968,86215.0,86199.0,0.58804665]
[1766013534488,0.03487968,86215.0,86200.0,0.48308942]
[1766013535676,0.03487968,86215.0,86201.0,0.58842]
[1766013535935,0.03487968,86215.0,86192.0,0.000646]
[1766013535936,0.56086,86210.0,86194.0,0.58842]
[1766013536150,0.46638,86204.0,86192.0,0.019006]
[1766013536364,0.56086,86210.0,86193.0,0.58842]
[1766013536574,0.56086,86210.0,86193.0,0.58803303]
[1766013536781,1.02724,86210.0,86193.0,0.58505508]
[1766013537033,1.14270078,86210.0,86193.0,0.58210336]
[1766013537208,1.14270078,86210.0,86193.0,0.57915198]
[1766013537416,0.0907,86211.0,86193.0,0.58076485]
[1766013537606,1.75e-06,86212.0,86194.0,0.48346]
[1766013537809,0.01844282,86217.0,86194.0,0.48507287]
[1766013538404,0.05332457,86217.0,86194.0,0.48507287]
[1766013538599,0.05332457,86217.0,86194.0,0.48470919]
[1766013539200,0.05432457,86217.0,86194.0,0.48470919]
[1766013539363,1.03687,86216.0,86194.0,0.48170497]
[1766013539747,0.58204277,86215.0,86195.0,0.58501216]
[1766013539941,0.02496277,86214.0,86195.0,0.58662503]
[1766013540145,1.04028,86213.0,86195.0,0.00161287]
[1766013540371,0.46638,86209.0,86195.0,0.00161287]
[1766013540549,0.46638,86209.0,86195.0,0.00125008]
[1766013541337,0.46638,86209.0,86196.0,0.48346]
[1766013541541,0.58184078,86209.0,86196.0,0.48346]
[1766013541878,0.58184078,86209.0,86197.0,0.58842]
[1766013542296,0.46638,86209.0,86197.0,0.48346]
[1766013542517,0.5739,86209.0,86197.0,0.48346]
[1766013542718,1.04028,86208.0,86195.0,0.00125008]
[1766013543662,1.04028,86208.0,86195.0,0.58967008]
[1766013543864,1.04028,86208.0,86195.0,0.58928102]
[1766013544065,1.04103185,86208.0,86195.0,0.58928102]
[1766013544471,0.0907,86207.0,86195.0,0.58928102]
[1766013544689,0.09145185,86207.0,86195.0,0.58928102]
[1766013544890,0.09145185,86207.0,86195.0,0.58891213]
[1766013545091,0.09145185,86207.0,86196.0,0.48346]
[1766013545313,1.85e-06,86207.0,86202.0,0.48346]
[1766013545519,1.85e-06,86207.0,86206.0,1.07188]
[1766013546051,1.85e-06,86207.0,86206.0,1.07150505]
[1766013546650,0.01830258,86216.0,86206.0,0.00124398]
[1766013546905,0.01867147,86216.0,86206.0,0.0008537]
[1766013547315,0.01867147,86216.0,86205.0,0.58324991]
[1766013547955,0.01867147,86216.0,86205.0,0.58289157]
[1766013548157,0.55708,86214.0,86206.0,0.001]
[1766013548336,0.0907,86212.0,86198.0,0.48346]
[1766013548549,0.55832398,86212.0,86198.0,0.48346]
[1766013549044,0.55832398,86212.0,86198.0,0.48310101]
[1766013550081,0.55832398,86212.0,86199.0,0.58842]
[1766013551165,0.55832398,86212.0,86199.0,0.58803619]
[1766013552007,0.00124398,86212.0,86200.0,0.45935]
[1766013552209,0.09194398,86212.0,86200.0,0.45898441]
[1766013552610,0.11692434,86212.0,86200.0,0.45898441]
[1766013552811,0.57735434,86212.0,86200.0,0.45898441]
[1766013553157,0.57735434,86212.0,86201.0,0.61495]
[1766013553158,0.0121838,86211.0,86201.0,0.61495]
[1766013553350,0.0121838,86211.0,86201.0,0.61457206]
[1766013553725,0.01255269,86211.0,86201.0,0.61457206]
[1766013553918,0.00036889,86211.0,86201.0,0.61457206]
[1766013554122,0.01830258,86216.0,86202.0,0.45935]
[1766013554325,8.282e-05,86217.0,86203.0,0.45935]
[1766013554524,0.00045171,86217.0,86203.0,0.45935]
[1766013554726,0.58093,86216.0,86202.0,9.29e-06]
[1766013555066,0.46043,86214.0,86197.0,0.45336456]
[1766013555205,0.02534956,86214.0,86198.0,0.61456621]
[1766013555403,0.00036889,86214.0,86198.0,0.61456621]
[1766013556412,0.00136889,86214.0,86198.0,0.61420766]
[1766013557245,0.00136889,86214.0,86200.0,0.45935]
[1766013558380,0.11548638,86219.0,86202.0,0.45935]
[1766013558610,0.11548638,86219.0,86203.0,0.61495]
[1766013558611,0.11636146,86219.0,86203.0,0.61495]
[1766013559355,0.11636146,86219.0,86203.0,0.61458495]
[1766013559764,0.11736146,86219.0,86203.0,0.61458495]
[1766013560390,0.03114974,86229.0,86210.0,0.45898264]
[1766013560593,0.12352091,86232.0,86210.0,0.4605955]
[1766013560915,0.03282091,86232.0,86210.0,0.4605955]
[1766013561208,0.09237117,86232.0,86210.0,0.4605955]
[1766013561401,0.09237117,86232.0,86210.0,0.00161286]
[1766013561607,0.09237117,86232.0,86211.0,0.67438173]
[1766013561773,0.09237117,86232.0,86211.0,0.67599459]
[1766013562005,0.09337117,86232.0,86211.0,0.67599459]
[1766013562205,0.00267117,86232.0,86211.0,0.67599459]
[1766013562383,0.0907,86229.0,86211.0,0.67599459]
[1766013562593,1.17e-06,86232.0,86221.0,0.013895]
[1766013562797,1.17e-06,86232.0,86228.0,0.00161286]
[1766013562992,1.17e-06,86232.0,86222.0,0.01836]
[1766013562993,0.5826042,86240.0,86222.0,0.01836]
[1766013563203,0.46043,86242.0,86222.0,0.01836]
[1766013563404,0.05,86244.0,86222.0,0.05484338]
[1766013563628,0.05,86244.0,86223.0,0.6145853]
[1766013563785,0.16546078,86244.0,86223.0,0.6145853]
[1766013563990,0.16557349,86244.0,86223.0,0.6145853]
[1766013564331,0.001,86232.0,86223.0,0.6145853]
[1766013564568,0.06161286,86248.0,86224.0,0.45935]
[1766013564778,0.38420244,86248.0,86224.0,0.46107557]
[1766013565190,0.0115946,86247.0,86224.0,0.46107557]
[1766013565398,0.15231286,86248.0,86224.0,0.46107557]
[1766013565610,0.0907,86248.0,86238.0,0.61495]
[1766013565821,0.0004,86252.0,86242.0,0.61495]
[1766013566058,0.0004,86252.0,86244.0,0.61495]
[1766013566290,0.001,86248.0,86246.0,0.61495]
[1766013566681,0.001,86248.0,86246.0,1.05710984]
[1766013567035,0.0004,86252.0,86234.0,0.44254]
[1766013567237,0.0004,86252.0,86235.0,0.10573992]
[1766013567441,0.0004,86252.0,86236.0,0.44254]
[1766013567669,0.0004,86252.0,86241.0,0.44218015]
[1766013567896,0.0004,86252.0,86241.0,0.44077906]
[1766013568094,0.05001839,86267.0,86240.0,0.58124715]
[1766013568336,0.46043,86266.0,86241.0,0.04654325]
[1766013568765,0.46043,86266.0,86242.0,0.61457026]
[1766013568912,0.5826042,86260.0,86243.0,0.01836]
[1766013569358,0.46043,86266.0,86243.0,0.01836]
[1766013569493,0.5826042,86260.0,86243.0,0.01836]
[1766013569692,0.5826042,86260.0,86243.0,0.01797011]
[1766013569899,0.5826042,86260.0,86244.0,0.33777]
[1766013570116,0.0616103,86267.0,86244.0,0.33777]
[1766013570328,4.2e-06,86260.0,86244.0,0.33479682]
[1766013570692,0.05001839,86269.0,86249.0,0.61495]
[1766013570899,0.5826042,86260.0,86243.0,0.0681624]
[1766013571127,0.5826042,86253.0,86237.0,0.03486347]
[1766013571333,0.5826042,86253.0,86196.0,1.22276125]
[1766013571334,0.00025576,86240.0,86230.0,0.01836]
[1766013571540,0.00025576,86240.0,86220.0,0.013895]
[1766013571804,0.61862,86235.0,86220.0,0.013895]
[1766013572032,0.46043,86230.0,86215.0,0.01836]
[1766013572251,1.08066287,86230.0,86215.0,0.01836]
[1766013572480,1.08066287,86230.0,86216.0,0.348685]
[1766013572703,0.46204287,86230.0,86216.0,0.348685]
[1766013572927,0.46204287,86230.0,86218.0,0.61495]
[1766013572928,0.00161287,86230.0,86218.0,0.61495]
[1766013573174,0.00161287,86230.0,86224.0,1.01135898]
[1766013573381,2.87e-06,86230.0,86226.0,0.33479]
[1766013573589,2.87e-06,86230.0,86228.0,0.33479]
[1766013573795,2.87e-06,86230.0,86224.0,0.06161898]
[1766013574208,2.87e-06,86230.0,86224.0,0.00011271]
[1766013574617,2.87e-06,86230.0,86226.0,0.001]
[1766013574816,2.87e-06,86230.0,86221.0,0.94947639]
[1766013575255,2.87e-06,86230.0,86224.0,0.001]
[1766013575428,2.87e-06,86230.0,86221.0,0.94947639]
[1766013575856,2.87e-06,86230.0,86216.0,0.013895]
[1766013576019,2.87e-06,86230.0,86217.0,0.61495]
[1766013576419,2.87e-06,86230.0,86219.0,0.61495]
[1766013576825,2.87e-06,86230.0,86221.0,0.61456256]
[1766013577267,2.87e-06,86230.0,86226.0,0.001]
[1766013577646,2.87e-06,86230.0,86221.0,0.61456256]
[1766013578013,2.87e-06,86230.0,86222.0,0.33378413]
[1766013578916,2.87e-06,86230.0,86222.0,0.33340635]
[1766013579974,2.87e-06,86230.0,86222.0,0.94798311]
[1766013580181,2.87e-06,86230.0,86222.0,0.61495]
[1766013580571,2.87e-06,86230.0,86222.0,0.61595]
[1766013580804,2.87e-06,86230.0,86222.0,0.73141078]
[1766013580979,2.87e-06,86230.0,86222.0,0.73002677]
[1766013581434,2.87e-06,86230.0,86222.0,0.73102677]
[1766013581972,2.87e-06,86230.0,86223.0,0.33268441]
[1766013582175,0.00025576,86240.0,86223.0,0.33429728]
[1766013583074,0.00025576,86240.0,86224.0,0.58902]
[1766013583280,0.00025576,86240.0,86224.0,0.59063287]
[1766013583504,0.00025576,86240.0,86226.0,0.58902]
[1766013583712,0.00025576,86240.0,86226.0,0.59063287]
[1766013584156,0.00025576,86240.0,86226.0,0.7057255]
[1766013584569,0.00025576,86240.0,86226.0,0.59026472]
[1766013584968,0.00025576,86240.0,86226.0,0.59126472]
[1766013585120,0.00025576,86240.0,86227.0,0.45526092]
[1766013585538,0.00025576,86240.0,86227.0,0.01997287]
[1766013585762,0.59607,86239.0,86227.0,0.01997287]
[1766013585955,1.06499,86238.0,86227.0,0.01997287]
[1766013586162,1.06499,86238.0,86227.0,0.01960363]
[1766013586708,1.06499,86238.0,86227.0,0.02060363]
[1766013586908,0.46892,86238.0,86227.0,0.01960363]
[1766013587179,0.46892,86238.0,86227.0,0.01922231]
[1766013587379,0.46892,86238.0,86227.0,0.02022231]
[1766013587674,0.46892,86238.0,86227.0,0.01922231]
[1766013587874,0.46892,86238.0,86227.0,0.02022231]
[1766013588255,0.46892,86238.0,86227.0,0.01922231]
[1766013588457,0.00025576,86240.0,86230.0,0.58902]
[1766013588660,0.00025576,86240.0,86227.0,0.01922231]
[1766013588867,0.00025576,86240.0,86231.0,1.02592]
[1766013589078,0.00025576,86240.0,86233.0,1.02592]
[1766013590740,0.00025576,86240.0,86233.0,1.02692]
[1766013591180,0.00025576,86240.0,86233.0,1.02592]
[1766013591419,0.00025576,86240.0,86233.0,1.02692]
[1766013592560,0.00025576,86240.0,86233.0,1.02619286]
[1766013592764,0.00025576,86240.0,86233.0,1.02507582]
[1766013592950,0.00025576,86240.0,86233.0,1.02296907]
[1766013593306,0.00025576,86240.0,86233.0,1.02261028]
[1766013593509,0.00025576,86240.0,86233.0,1.02361028]
[1766013593713,0.00025576,86240.0,86233.0,1.02261028]
[1766013593914,0.00025576,86240.0,86227.0,0.01997287]
[1766013594089,0.00025576,86240.0,86227.0,0.45687287]
[1766013594708,0.00025576,86240.0,86233.0,0.001]
[1766013595031,0.59607,86232.0,86222.0,0.01836]
[1766013595251,1.06499,86232.0,86222.0,0.01797571]
[1766013595450,1.06499,86232.0,86222.0,0.01759831]
[1766013595648,0.46892,86232.0,86222.0,0.01724353]
[1766013595873,0.46892,86232.0,86222.0,0.01652798]
[1766013596081,0.46892,86232.0,86222.0,0.01543188]
[1766013596302,0.46892,86232.0,86222.0,0.01431131]
[1766013596736,0.46892,86232.0,86222.0,0.01358971]
[1766013596914,0.46892,86232.0,86222.0,0.01385059]
[1766013597076,0.46892,86232.0,86222.0,0.01177837]
[1766013597273,0.46892,86232.0,86222.0,0.01066623]
[1766013597648,0.46892,86232.0,86222.0,0.01166623]
[1766013597819,0.46892,86232.0,86222.0,0.0109099]
[1766013598000,0.46892,86232.0,86222.0,0.01017556]
[1766013598200,0.46892,86232.0,86222.0,0.0090724]
[1766013598398,0.46892,86232.0,86222.0,0.00834756]
[1766013598784,0.46892,86232.0,86222.0,0.00799181]
[1766013599364,0.46892,86232.0,86222.0,0.44389181]
[1766013599672,0.57657858,86232.0,86222.0,0.44489181]
[1766013600009,0.24350935,86239.0,86225.0,0.58902]
[1766013600214,0.01159581,86238.0,86228.0,0.4369]
[1766013600417,0.01159581,86238.0,86230.0,0.4369]
[1766013600418,0.01159595,86237.0,86230.0,0.4369]
[1766013600622,0.01159595,86237.0,86230.0,1.02592]
[1766013600864,0.01159568,86239.0,86222.0,0.00161287]
[1766013600865,1.0,86239.0,86222.0,0.00161287]
[1766013601034,1.0,86239.0,86226.0,0.43651788]
[1766013601239,0.375,86239.0,86226.0,0.00123853]
[1766013601439,0.00025576,86240.0,86229.0,0.58222068]
[1766013601637,0.00025576,86240.0,86229.0,0.58272618]
[1766013601893,0.0001928,86240.0,86229.0,0.58236004]
[1766013602046,0.0001928,86240.0,86229.0,0.58164073]
[1766013602368,0.0001928,86240.0,86230.0,0.58150403]
[1766013602615,0.0001928,86240.0,86229.0,0.0005055]
[1766013603004,0.0001928,86240.0,86230.0,0.58223774]
[1766013603155,0.0001928,86240.0,86231.0,0.43578]
[1766013603357,0.0001928,86240.0,86231.0,0.43504142]
[1766013603581,0.0001928,86240.0,86231.0,0.43468402]
[1766013603958,9.36e-05,86240.0,86231.0,0.43359736]
[1766013604160,9.36e-05,86240.0,86231.0,0.43287785]
[1766013604358,0.00170646,86240.0,86231.0,0.43287785]
[1766013604680,0.59607,86239.0,86231.0,0.001]
[1766013604882,0.59607,86239.0,86217.0,0.0009676]
[1766013604883,0.59607,86230.0,86217.0,0.0009676]
[1766013605082,0.59607,86229.0,86217.0,0.0009676]
[1766013606275,0.59607,86229.0,86217.0,0.0019676]
[1766013606515,0.47053286,86230.0,86220.0,0.43388]
[1766013606516,0.00161286,86230.0,86220.0,0.43388]
[1766013607373,0.01836,86236.0,86220.0,0.43388]
[1766013607938,0.01836,86236.0,86220.0,0.53746118]
[1766013608138,0.59607,86235.0,86220.0,0.5826042]
[1766013608272,0.02502264,86234.0,86221.0,0.43388]
[1766013608478,0.0266355,86234.0,86221.0,0.43388]
[1766013608675,0.00161286,86234.0,86221.0,0.43388]
[1766013608880,0.0266355,86234.0,86221.0,0.43388]
[1766013609293,0.14209628,86234.0,86221.0,0.43388]
[1766013609975,0.0266355,86234.0,86221.0,0.43388]
[1766013610178,0.0312761,86250.0,86233.0,0.00161287]
[1766013610413,0.0312761,86250.0,86239.0,0.33944]
[1766013610414,2.65e-06,86250.0,86239.0,0.33944]
[1766013610605,2.65e-06,86250.0,86239.0,0.34105287]
[1766013611170,2.65e-06,86250.0,86241.0,0.33933]
[1766013611750,2.65e-06,86250.0,86240.0,0.03486347]
[1766013611974,2.65e-06,86250.0,86240.0,0.37419347]
[1766013612186,2.65e-06,86250.0,86241.0,0.02738478]
[1766013612384,2.65e-06,86250.0,86241.0,0.33933]
[1766013612773,2.65e-06,86250.0,86241.0,0.34094287]
[1766013613570,2.65e-06,86250.0,86241.0,0.34194287]
[1766013613783,2.65e-06,86250.0,86241.0,0.34094287]
[1766013614205,2.65e-06,86250.0,86241.0,0.34194287]
[1766013614428,2.65e-06,86250.0,86241.0,0.34094287]
[1766013615284,2.65e-06,86250.0,86241.0,0.00161287]
[1766013615951,2.65e-06,86250.0,86241.0,0.34194287]
[1766013616156,2.65e-06,86250.0,86241.0,0.00261287]
[1766013616792,0.00025575,86248.0,86241.0,0.00261287]
[1766013617164,0.00025575,86248.0,86241.0,0.00161287]
[1766013618308,0.00025575,86248.0,86240.0,0.03443634]
[1766013618520,0.00025575,86248.0,86241.0,0.001]
[1766013619168,0.00025575,86248.0,86242.0,0.33933]
[1766013621272,0.00025575,86248.0,86240.0,0.01159312]
[1766013621494,0.01159514,86243.0,86225.0,0.00096748]
[1766013621730,0.62122,86239.0,86225.0,0.00096748]
[1766013621918,1.10599,86236.0,86227.0,0.03486942]
[1766013622116,1.10760287,86236.0,86227.0,0.03486942]
[1766013622612,0.62122,86235.0,86227.0,0.03486942]
[1766013622819,0.62122,86234.0,86227.0,0.03486942]
[1766013623018,0.62283287,86234.0,86227.0,0.03486942]
[1766013623233,0.00161287,86234.0,86228.0,0.33933]
[1766013624278,0.01159662,86232.0,86228.0,0.33933]
[1766013624449,0.01159662,86232.0,86225.0,0.00096748]
[1766013624450,0.24354263,86228.0,86225.0,0.00096748]
[1766013624626,0.00161287,86228.0,86225.0,0.00096748]
[1766013625460,0.01321003,86228.0,86225.0,0.00096748]